bitfinex-derivatives/quotes_BNBF0:USTF0_20251225
["timestamp","ask_amount","ask_price","bid_price","bid_amount"]
[1766690778863,1.18983594,841.21,840.69,0.88904031]
[1766690779162,0.20688241,841.25,840.69,0.88904031]
[1766690779163,1.18983594,841.2,840.69,0.88904031]
[1766690779365,1.18983594,841.19,840.69,0.88904031]
[1766690779561,1.18983594,841.18,840.69,0.88904031]
[1766690779761,1.18983594,841.17,840.69,0.88904031]
[1766690779960,0.20688241,841.25,840.69,0.88904031]
[1766690780164,1.18983574,841.24,840.69,0.88904031]
[1766690780460,1.18983574,841.23,840.69,0.88904031]
[1766690780660,1.18983574,841.22,840.69,0.88904031]
[1766690780863,1.18983574,841.21,840.69,0.88904031]
[1766690781065,1.18983574,841.2,840.69,0.88904031]
[1766690781261,1.18983574,841.19,840.69,0.88904031]
[1766690781465,1.18983574,841.18,840.69,0.88904031]
[1766690781663,1.18983574,841.17,840.69,0.88904031]
[1766690781863,0.20688241,841.25,840.69,0.88904031]
[1766690782068,1.18983574,841.24,840.69,0.88904031]
[1766690782267,1.18983574,841.23,840.69,0.88904031]
[1766690782467,1.18983574,841.22,840.69,0.88904031]
[1766690782763,1.18983574,841.21,840.69,0.88904031]
[1766690782963,1.18983574,841.2,840.69,0.88904031]
[1766690783267,1.18983574,841.19,840.69,0.88904031]
[1766690783464,1.18983574,841.18,840.69,0.88904031]
[1766690783669,0.20688241,841.25,840.69,0.88904031]
[1766690783869,1.18983574,841.24,840.69,0.88904031]
[1766690784164,0.20688241,841.25,840.69,0.88904031]
[1766690784165,1.18983574,841.23,840.69,0.88904031]
[1766690784365,1.18983574,841.22,840.69,0.88904031]
[1766690784569,1.18983574,841.21,840.69,0.88904031]
[1766690784768,1.18983574,841.2,840.69,0.88904031]
[1766690784966,1.18983574,841.19,840.69,0.88904031]
[1766690785164,1.18983574,841.18,840.69,0.88904031]
[1766690785367,0.20688241,841.25,840.69,0.88904031]
[1766690785568,1.18983574,841.24,840.69,0.88904031]
[1766690785768,1.18983574,841.23,840.69,0.88904031]
[1766690785970,1.18983574,841.22,840.69,0.88904031]
[1766690786269,1.18983574,841.21,840.69,0.88904031]
[1766690786468,1.18983574,841.2,840.69,0.88904031]
[1766690786768,1.18983574,841.19,840.69,0.88904031]
[1766690786966,1.18983574,841.18,840.69,0.88904031]
[1766690787169,0.20688241,841.25,840.69,0.88904031]
[1766690787369,1.18983574,841.24,840.69,0.88904031]
[1766690787569,1.18983574,841.23,840.69,0.88904031]
[1766690787769,1.18983574,841.22,840.69,0.88904031]
[1766690788065,1.18983574,841.21,840.69,0.88904031]
[1766690788269,1.18983574,841.2,840.69,0.88904031]
[1766690788468,0.20688241,841.25,840.69,0.88904031]
[1766690788469,1.18983574,841.19,840.69,0.88904031]
[1766690788667,1.18983574,841.18,840.69,0.88904031]
[1766690788872,0.20688241,841.25,840.69,0.88904031]
[1766690789072,1.18983633,841.24,840.69,0.88904031]
[1766690789372,1.18983633,841.23,840.69,0.88904031]
[1766690789571,1.18983633,841.22,840.69,0.88904031]
[1766690789871,1.18983633,841.21,840.69,0.88904031]
[1766690790170,1.18983633,841.2,840.69,0.88904031]
[1766690790371,1.18983633,841.19,840.69,0.88904031]
[1766690790572,1.18983633,841.18,840.69,0.88904031]
[1766690790773,0.20688241,841.25,840.69,0.88904031]
[1766690790971,1.18983633,841.24,840.69,0.88904031]
[1766690791172,1.18983633,841.23,840.69,0.88904031]
[1766690791367,1.18983633,841.22,840.69,0.88904031]
[1766690791569,1.18983633,841.21,840.69,0.88904031]
[1766690791769,1.18983633,841.2,840.69,0.88904031]
[1766690792070,1.18983633,841.19,840.69,0.88904031]
[1766690792274,1.18983633,841.18,840.69,0.88904031]
[1766690792473,0.20688241,841.25,840.69,0.88904031]
[1766690792673,1.18983603,841.24,840.69,0.88904031]
[1766690792870,0.20688241,841.25,840.69,0.88904031]
[1766690793474,1.18983574,841.24,840.69,0.88904031]
[1766690794169,1.18983574,841.23,840.69,0.88904031]
[1766690794376,0.20688241,841.25,840.69,0.88904031]
[1766690794568,1.18983574,841.24,840.69,0.88904031]
[1766690794773,1.18983574,841.23,840.69,0.88904031]
[1766690794973,1.18983574,841.22,840.69,0.88904031]
[1766690795272,1.18983574,841.21,840.69,0.88904031]
[1766690795471,1.18983574,841.2,840.69,0.88904031]
[1766690795771,1.18983574,841.19,840.69,0.88904031]
[1766690795971,0.20688241,841.25,840.69,0.88904031]
[1766690796173,1.18983574,841.24,840.69,0.88904031]
[1766690796374,1.18983574,841.23,840.69,0.88904031]
[1766690796573,1.18983574,841.22,840.69,0.88904031]
[1766690796777,1.18983574,841.21,840.69,0.88904031]
[1766690796977,1.18983574,841.2,840.69,0.88904031]
[1766690797177,1.18983574,841.19,840.69,0.88904031]
[1766690797378,0.20688241,841.25,840.69,0.88904031]
[1766690797574,1.18983574,841.24,840.69,0.88904031]
[1766690797774,1.18983574,841.23,840.69,0.88904031]
[1766690798074,1.18983574,841.22,840.69,0.88904031]
[1766690798273,1.18983574,841.21,840.69,0.88904031]
[1766690798478,1.18983574,841.2,840.69,0.88904031]
[1766690798678,1.18983574,841.19,840.69,0.88904031]
[1766690798877,0.20688241,841.25,840.69,0.88904031]
[1766690799073,1.18983633,841.24,840.69,0.88904031]
[1766690799278,1.18983633,841.23,840.69,0.88904031]
[1766690799474,1.18983633,841.22,840.69,0.88904031]
[1766690799775,1.18983633,841.21,840.69,0.88904031]
[1766690799975,1.18983633,841.2,840.69,0.88904031]
[1766690800176,1.18983633,841.19,840.69,0.88904031]
[1766690800375,0.20688241,841.25,840.69,0.88904031]
[1766690800575,1.18983633,841.24,840.69,0.88904031]
[1766690800779,1.18983633,841.23,840.69,0.88904031]
[1766690800977,1.18983633,841.22,840.69,0.88904031]
[1766690801175,1.18983633,841.21,840.69,0.88904031]
[1766690801379,1.18983633,841.2,840.69,0.88904031]
[1766690801582,1.18983633,841.19,840.69,0.88904031]
[1766690801776,0.20688241,841.25,840.69,0.88904031]
[1766690801979,1.18983633,841.24,840.69,0.88904031]
[1766690802275,1.18983633,841.23,840.69,0.88904031]
[1766690802477,1.18983633,841.22,840.69,0.88904031]
[1766690802676,1.18983633,841.21,840.69,0.88904031]
[1766690802881,1.18983633,841.2,840.69,0.88904031]
[1766690803078,1.18983633,841.19,840.69,0.88904031]
[1766690803282,0.20688241,841.25,840.69,0.88904031]
[1766690803482,1.18983613,841.24,840.69,0.88904031]
[1766690803677,1.18983613,841.23,840.69,0.88904031]
[1766690803881,1.18983613,841.22,840.69,0.88904031]
[1766690804081,1.18983613,841.21,840.69,0.88904031]
[1766690804279,1.18983613,841.2,840.69,0.88904031]
[1766690804583,1.18983613,841.19,840.69,0.88904031]
[1766690804879,0.20688241,841.25,840.69,0.88904031]
[1766690805083,1.18983613,841.24,840.69,0.88904031]
[1766690805282,1.18983613,841.23,840.69,0.88904031]
[1766690805484,1.18983613,841.22,840.69,0.88904031]
[1766690805678,1.18983613,841.21,840.69,0.88904031]
[1766690805883,1.18983613,841.2,840.69,0.88904031]
[1766690806082,1.18983613,841.19,840.69,0.88904031]
[1766690806280,0.20688241,841.25,840.69,0.88904031]
[1766690806483,1.18983603,841.24,840.69,0.88904031]
[1766690806680,1.18983603,841.23,840.69,0.88904031]
[1766690806879,1.18983603,841.22,840.69,0.88904031]
[1766690807079,1.18983603,841.21,840.69,0.88904031]
[1766690807284,1.18983603,841.2,840.69,0.88904031]
[1766690807581,1.18983603,841.19,840.69,0.88904031]
[1766690807781,0.20688241,841.25,840.69,0.88904031]
[1766690808084,1.18983584,841.24,840.69,0.88904031]
[1766690808281,1.18983584,841.23,840.69,0.88904031]
[1766690808479,1.18983584,841.22,840.69,0.88904031]
[1766690808680,1.18983584,841.21,840.69,0.88904031]
[1766690808885,1.18983584,841.2,840.69,0.88904031]
[1766690809081,1.18983584,841.19,840.69,0.88904031]
[1766690809385,0.20688241,841.25,840.69,0.88904031]
[1766690809684,1.18983631,841.24,840.69,0.88904031]
[1766690809884,1.18983631,841.23,840.69,0.88904031]
[1766690810085,1.18983631,841.22,840.69,0.88904031]
[1766690810283,1.18983631,841.21,840.69,0.88904031]
[1766690810486,1.18983631,841.2,840.69,0.88904031]
[1766690810683,1.18983631,841.19,840.69,0.88904031]
[1766690810883,0.20688241,841.25,840.69,0.88904031]
[1766690811082,1.18983612,841.24,840.69,0.88904031]
[1766690811282,1.18983612,841.23,840.69,0.88904031]
[1766690811482,1.18983612,841.22,840.69,0.88904031]
[1766690811782,1.18983612,841.21,840.69,0.88904031]
[1766690812083,1.18983612,841.2,840.69,0.88904031]
[1766690812282,1.18983612,841.19,840.69,0.88904031]
[1766690812485,0.20688241,841.25,840.69,0.88904031]
[1766690812682,1.18983592,841.24,840.69,0.88904031]
[1766690812884,1.18983592,841.23,840.69,0.88904031]
[1766690813086,1.18983592,841.22,840.69,0.88904031]
[1766690813382,1.18983592,841.21,840.69,0.88904031]
[1766690813585,1.18983592,841.2,840.69,0.88904031]
[1766690813787,1.18983592,841.19,840.69,0.88904031]
[1766690813994,0.88656649,841.48,840.78,0.88904031]
[1766690814188,0.20686642,841.38,840.78,12.71587169]
[1766690814393,1.18970548,841.37,840.78,12.71587169]
[1766690814593,1.18970548,841.36,840.78,12.71587169]
[1766690814788,1.18970548,841.35,840.78,12.71587169]
[1766690814992,0.20686642,841.38,840.78,12.71587169]
[1766690814993,1.18970548,841.34,840.78,12.71587169]
[1766690815188,1.18970548,841.33,840.78,12.71587169]
[1766690815394,1.18970548,841.32,840.78,12.71587169]
[1766690815588,1.18970548,841.31,840.78,12.71587169]
[1766690815892,1.18970548,841.3,840.78,12.71587169]
[1766690816192,0.20686642,841.38,840.78,12.71587169]
[1766690816389,1.18970441,841.37,840.78,12.71587169]
[1766690816588,1.18970441,841.36,840.78,12.71587169]
[1766690816792,1.18970441,841.35,840.78,12.71587169]
[1766690816988,1.18970441,841.34,840.78,12.71587169]
[1766690817193,1.18970441,841.33,840.78,12.71587169]
[1766690817393,0.20686642,841.38,840.76,0.88904031]
[1766690817593,1.18968318,841.37,840.76,0.88904031]
[1766690817889,1.18968318,841.36,840.76,0.88904031]
[1766690818093,1.18968318,841.35,840.78,0.88904031]
[1766690818290,1.18968318,841.34,840.78,0.88904031]
[1766690818490,1.18968318,841.33,840.78,0.88904031]
[1766690818790,0.20686642,841.38,840.78,0.88904031]
[1766690818993,1.18968318,841.37,840.78,0.88904031]
[1766690819190,1.18968318,841.36,840.78,0.88904031]
[1766690819388,1.18968318,841.35,840.78,0.88904031]
[1766690819690,1.18968318,841.34,840.78,0.88904031]
[1766690819893,1.18968318,841.33,840.78,0.88904031]
[1766690820090,0.20686642,841.38,840.78,0.88904031]
[1766690820295,1.18968328,841.37,840.78,0.88904031]
[1766690820596,1.18968328,841.36,840.78,0.88904031]
[1766690820892,1.18968328,841.35,840.78,0.88904031]
[1766690821095,1.18968328,841.34,840.78,0.88904031]
[1766690821391,0.20686642,841.38,840.78,0.88904031]
[1766690821594,1.18968328,841.37,840.78,0.88904031]
[1766690821793,1.18968328,841.36,840.78,0.88904031]
[1766690822093,1.18968328,841.35,840.78,0.88904031]
[1766690822290,1.18968328,841.34,840.77,0.88904031]
[1766690822491,0.20686642,841.38,840.77,0.88904031]
[1766690822692,1.18968426,841.37,840.77,0.88904031]
[1766690822891,1.18968426,841.36,840.77,0.88904031]
[1766690823092,1.18968426,841.35,840.77,0.88904031]
[1766690823296,0.20686642,841.38,840.77,0.88904031]
[1766690823498,1.18968406,841.37,840.77,0.88904031]
[1766690823791,1.18968406,841.36,840.77,0.88904031]
[1766690823996,1.18968406,841.35,840.77,0.88904031]
[1766690824292,0.20686642,841.38,840.77,0.88904031]
[1766690824498,1.18968406,841.37,840.77,0.88904031]
[1766690824797,1.18968406,841.36,840.77,0.88904031]
[1766690825092,1.18968406,841.35,840.77,0.88904031]
[1766690825294,0.20686642,841.38,840.77,0.88904031]
[1766690825494,1.18968387,841.37,840.77,0.88904031]
[1766690825695,1.18968387,841.36,840.77,0.88904031]
[1766690825996,0.20686642,841.38,840.77,0.88904031]
[1766690826200,1.18968387,841.37,840.77,0.88904031]
[1766690826396,1.18968387,841.36,840.77,0.88904031]
[1766690826601,0.20686642,841.38,840.77,0.88904031]
[1766690826794,1.18968387,841.37,840.77,0.88904031]
[1766690827099,1.18968387,841.36,840.76,0.88904031]
[1766690827300,0.20686642,841.38,840.76,0.88904031]
[1766690827500,1.18968387,841.37,840.76,0.88904031]
[1766690827795,1.18968387,841.36,840.76,0.88904031]
[1766690828000,0.20686642,841.38,840.76,0.88904031]
[1766690828197,1.18968397,841.37,840.76,0.88904031]
[1766690828400,1.18968397,841.36,840.76,0.88904031]
[1766690828696,0.20686642,841.38,840.76,0.88904031]
[1766690828894,1.18968406,841.37,840.76,0.88904031]
[1766690829098,1.18968406,841.36,840.76,0.88904031]
[1766690829399,0.20686642,841.38,840.76,0.88904031]
[1766690829599,1.18968406,841.37,840.76,0.88904031]
[1766690829797,1.18968406,841.36,840.76,0.88904031]
[1766690829995,0.20686642,841.38,840.76,0.88904031]
[1766690830197,1.18968406,841.37,840.76,0.88904031]
[1766690830502,1.18968406,841.36,840.76,0.88904031]
[1766690830702,0.20686642,841.38,840.76,0.88904031]
[1766690831000,1.18968406,841.37,840.76,0.88904031]
[1766690831301,1.18968406,841.36,840.76,0.88904031]
[1766690831501,0.20686642,841.38,840.61,1.18600648]
[1766690831801,1.18968406,841.37,840.61,1.18600648]
[1766690832000,1.18968406,841.36,840.61,1.18600648]
[1766690832197,0.20686642,841.38,840.61,1.18600648]
[1766690832398,1.18968426,841.37,840.61,1.18600648]
[1766690832597,0.20686642,841.38,840.61,1.18600648]
[1766690832802,1.18968426,841.37,840.61,1.18600648]
[1766690832997,0.20686642,841.38,840.46,1.77900973]
[1766690833202,1.18968426,841.37,840.46,1.77900973]
[1766690833501,0.20686642,841.38,840.46,1.77900973]
[1766690833701,1.18968426,841.37,840.76,0.89061414]
[1766690833901,0.20686642,841.38,840.76,13.61867158]
[1766690834201,1.18968426,841.37,840.76,13.61867158]
[1766690834397,0.20686642,841.38,840.76,13.61867158]
[1766690834602,1.18968426,841.37,840.76,13.61867158]
[1766690834800,0.20686642,841.38,840.76,13.61867158]
[1766690835001,1.18968426,841.37,840.76,13.61867158]
[1766690835202,0.20686642,841.38,840.76,13.61867158]
[1766690835403,1.18968426,841.37,840.76,13.61867158]
[1766690835604,0.20686642,841.38,840.76,13.61867158]
[1766690835804,1.18968426,841.37,840.76,13.61867158]
[1766690836005,0.20686642,841.38,840.76,13.61867158]
[1766690836205,1.18968426,841.37,840.76,13.61867158]
[1766690836401,0.20686642,841.38,840.76,13.61867158]
[1766690836604,1.18968416,841.37,840.76,13.61867158]
[1766690836901,0.20686642,841.38,840.76,13.61867158]
[1766690837106,1.18968387,841.37,840.76,0.89061414]
[1766690837403,0.20686642,841.38,840.76,0.89061414]
[1766690837608,1.18968387,841.37,840.76,0.89061414]
[1766690837806,0.20686642,841.38,840.76,0.89061414]
[1766690838001,1.18968387,841.37,840.76,0.89061414]
[1766690838307,0.20686642,841.38,840.76,0.89061414]
[1766690838505,1.18968396,841.37,840.76,0.89061414]
[1766690838708,0.20686642,841.38,840.76,0.89061414]
[1766690838906,1.18968396,841.37,840.76,0.89061414]
[1766690839108,0.20686642,841.38,840.76,0.89061414]
[1766690839305,1.18968386,841.37,840.76,0.89061414]
[1766690839506,0.20686642,841.38,840.76,0.89061414]
[1766690839706,1.18968386,841.37,840.76,0.89061414]
[1766690839906,0.20686642,841.38,840.76,0.89061414]
[1766690840106,1.18968386,841.37,840.76,0.89061414]
[1766690840311,0.20686642,841.38,840.76,0.89061414]
[1766690840511,1.18968415,841.37,840.76,0.89061414]
[1766690840711,0.20686642,841.38,840.76,0.89061414]
[1766690841011,1.18968415,841.37,840.76,0.89061414]
[1766690841208,0.20686642,841.38,840.76,0.89061414]
[1766690841508,1.18968415,841.37,840.76,0.89061414]
[1766690841712,1.18968415,841.36,840.76,0.89061414]
[1766690841911,0.20686642,841.38,840.76,0.89061414]
[1766690842110,1.18968415,841.37,840.76,0.89061414]
[1766690842308,1.18968415,841.36,840.76,0.89061414]
[1766690842514,0.20686642,841.38,840.76,0.89061414]
[1766690842813,1.18968415,841.37,840.76,0.89061414]
[1766690843013,1.18968415,841.36,840.76,0.89061414]
[1766690843213,0.20686642,841.38,840.76,0.89061414]
[1766690843514,1.18968415,841.37,840.76,0.89061414]
[1766690843711,1.18968415,841.36,840.76,0.89061414]
[1766690843910,0.20686642,841.38,840.76,0.89061414]
[1766690844111,1.18968396,841.37,840.76,0.89061414]
[1766690844315,1.18968396,841.36,840.76,0.89061414]
[1766690844515,0.20686642,841.38,840.76,0.89061414]
[1766690844713,1.18968396,841.37,840.76,0.89061414]
[1766690844911,1.18968396,841.36,840.76,0.89061414]
[1766690845116,0.20686642,841.38,840.76,0.89061414]
[1766690845313,1.18968396,841.37,840.76,0.89061414]
[1766690845513,1.18968396,841.36,840.76,0.89061414]
[1766690845713,0.20686642,841.38,840.76,0.89061414]
[1766690845914,1.18968396,841.37,840.76,0.89061414]
[1766690846117,1.18968396,841.36,840.76,0.89061414]
[1766690846414,0.20686642,841.38,840.76,0.89061414]
[1766690846713,1.18968396,841.37,840.76,0.89061414]
[1766690846914,1.18968396,841.36,840.76,0.89061414]
[1766690847114,0.20686642,841.38,840.76,0.89061414]
[1766690847315,1.18968396,841.37,840.76,0.89061414]
[1766690847614,1.18968396,841.36,840.76,0.89061414]
[1766690847918,0.20686642,841.38,840.76,0.89061414]
[1766690848118,1.18968396,841.37,840.77,0.89061414]
[1766690848319,1.18968396,841.36,840.77,0.89061414]
[1766690848615,0.20686642,841.38,840.77,0.89061414]
[1766690848820,1.18968396,841.37,840.77,13.70748122]
[1766690849115,1.18968396,841.36,840.77,13.70748122]
[1766690849315,1.18968396,841.35,840.77,13.70748122]
[1766690849518,0.20686642,841.38,840.77,13.70748122]
[1766690849717,1.18968396,841.37,840.77,13.70748122]
[1766690849916,1.18968396,841.36,840.77,13.70748122]
[1766690850117,1.18968396,841.35,840.77,13.70748122]
[1766690850322,0.20686642,841.38,840.77,13.70748122]
[1766690850520,1.18968396,841.37,840.77,13.70748122]
[1766690850817,1.18968396,841.36,840.77,13.70748122]
[1766690851117,1.18968396,841.35,840.77,13.70748122]
[1766690851420,0.20686642,841.38,840.77,13.70748122]
[1766690851620,1.18968396,841.37,840.77,13.70748122]
[1766690851817,1.18968396,841.36,840.77,13.70748122]
[1766690852117,1.18968396,841.35,840.78,0.89061414]
[1766690852317,0.20686642,841.38,840.78,0.89061414]
[1766690852516,1.18968396,841.37,840.78,0.89061414]
[1766690852716,1.18968396,841.36,840.78,0.89061414]
[1766690852920,1.18968396,841.35,840.78,0.89061414]
[1766690853118,0.20686642,841.38,840.78,0.89061414]
[1766690853319,1.18968376,841.37,840.78,0.89061414]
[1766690853517,1.18968376,841.36,840.78,0.89061414]
[1766690853721,1.18968376,841.35,840.78,0.89061414]
[1766690853921,1.18968376,841.34,840.78,0.89061414]
[1766690854121,0.20686642,841.38,840.78,0.89061414]
[1766690854324,1.18968386,841.37,840.78,0.89061414]
[1766690854520,1.18968386,841.36,840.78,0.89061414]
[1766690854821,1.18968386,841.35,840.78,0.89061414]
[1766690855019,1.18968386,841.34,840.78,0.89061414]
[1766690855222,0.20686642,841.38,840.79,0.89061414]
[1766690855417,1.18968386,841.37,840.79,0.89061414]
[1766690855620,1.18968386,841.36,840.79,0.89061414]
[1766690855820,1.18968386,841.35,840.79,0.89061414]
[1766690856020,1.18968386,841.34,840.79,0.89061414]
[1766690856319,1.18968386,841.33,840.79,0.89061414]
[1766690856523,0.20686642,841.38,840.79,0.89061414]
[1766690856723,1.18968386,841.37,840.79,0.89061414]
[1766690856919,1.18968386,841.36,840.79,0.89061414]
[1766690857121,1.18968386,841.35,840.8,0.89061414]
[1766690857422,1.18968386,841.34,840.8,0.89061414]
[1766690857624,1.18968386,841.33,840.8,0.89061414]
[1766690857822,1.18968386,841.32,840.8,0.89061414]
[1766690858027,0.20686642,841.38,840.8,0.89061414]
[1766690858222,1.18968386,841.37,840.82,0.89061414]
[1766690858427,1.18968386,841.36,840.82,0.89061414]
[1766690858729,0.20686642,841.38,840.82,0.89061414]
[1766690858730,1.18968386,841.35,840.82,0.89061414]
[1766690858928,1.18968386,841.34,840.82,0.89061414]
[1766690859127,1.18968386,841.33,840.82,0.89061414]
[1766690859328,1.18968386,841.32,840.82,13.83498899]
[1766690859524,1.18968386,841.31,840.82,13.83498899]
[1766690859727,1.18968386,841.3,840.82,13.83498899]
[1766690859927,0.20686642,841.38,840.82,13.83498899]
[1766690860126,1.18968386,841.37,840.82,13.83498899]
[1766690860326,1.18968386,841.36,840.82,13.83498899]
[1766690860628,1.18968386,841.35,840.82,13.83498899]
[1766690860825,1.18968386,841.34,840.82,13.83498899]
[1766690861026,1.18968386,841.33,840.82,13.83498899]
[1766690861225,1.18968386,841.32,840.82,13.83498899]
[1766690861430,1.18968386,841.31,840.82,13.83498899]
[1766690861630,1.18968386,841.3,840.82,13.83498899]
[1766690861930,0.20686642,841.38,840.82,13.83498899]
[1766690862129,1.18968386,841.37,840.82,13.83498899]
[1766690862429,1.18968386,841.36,840.82,13.83498899]
[1766690862729,1.18968386,841.35,840.82,13.83498899]
[1766690862928,1.18968386,841.34,840.82,13.83498899]
[1766690863128,1.18968386,841.33,840.82,0.89061414]
[1766690863327,1.18968386,841.32,840.82,0.89061414]
[1766690863529,1.18968386,841.31,840.82,0.89061414]
[1766690863826,1.18968386,841.3,840.82,0.89061414]
[1766690864030,0.20686642,841.38,840.82,0.89061414]
[1766690864230,1.18968386,841.37,840.82,0.89061414]
[1766690864430,1.18968386,841.36,840.82,0.89061414]
[1766690864631,1.18968386,841.35,840.82,0.89061414]
[1766690864926,1.18968386,841.34,840.82,0.89061414]
[1766690865127,1.18968386,841.33,840.82,0.89061414]
[1766690865328,1.18968386,841.32,840.82,0.89061414]
[1766690865626,1.18968386,841.31,840.82,0.89061414]
[1766690865827,1.18968386,841.3,840.82,0.89061414]
[1766690866031,0.20686642,841.38,840.82,0.89061414]
[1766690866229,1.18968386,841.37,840.82,0.89061414]
[1766690866526,1.18968386,841.36,840.82,0.89061414]
[1766690866727,1.18968386,841.35,840.82,0.89061414]
[1766690866930,1.18968386,841.34,840.82,0.89061414]
[1766690867130,1.18968386,841.33,840.82,0.89061414]
[1766690867330,1.18968386,841.32,840.82,0.89061414]
[1766690867529,1.18968386,841.31,840.82,0.89061414]
[1766690867832,1.18968386,841.3,840.82,0.89061414]
[1766690868030,0.20686642,841.38,840.82,0.89061414]
[1766690868333,1.18968386,841.37,840.82,0.89061414]
[1766690868634,1.18968386,841.36,840.82,0.89061414]
[1766690868933,1.18968386,841.35,840.82,0.89061414]
[1766690869133,1.18968386,841.34,840.82,0.89061414]
[1766690869333,1.18968386,841.33,840.82,0.89061414]
[1766690869534,1.18968386,841.32,840.82,0.89061414]
[1766690869731,1.18968386,841.31,840.82,0.89061414]
[1766690869932,1.18968386,841.3,840.82,0.89061414]
[1766690870134,0.20686642,841.38,840.82,0.89061414]
[1766690870431,1.18968367,841.37,840.82,0.89061414]
[1766690870633,1.18968367,841.36,840.82,0.89061414]
[1766690870836,1.18968367,841.35,840.82,0.89061414]
[1766690871032,1.18968367,841.34,840.81,0.89061414]
[1766690871237,1.18968367,841.33,840.79,0.89061414]
[1766690871437,1.18968367,841.32,840.78,0.89061414]
[1766690871635,1.18968367,841.31,840.78,0.89061414]
[1766690871838,1.18968367,841.3,840.72,0.89061414]
[1766690872038,1.18968367,841.29,840.72,0.89061414]
[1766690872234,1.18968367,841.28,840.72,0.89061414]
[1766690872434,1.18968367,841.27,840.71,0.89061414]
[1766690872734,1.18968367,841.26,840.71,0.89061414]
[1766690873034,1.18968367,841.25,840.71,0.89061414]
[1766690873239,0.20686642,841.38,840.71,0.89061414]
[1766690873441,1.1897789,841.37,840.71,0.89061414]
[1766690873636,1.1897789,841.36,840.71,0.89061414]
[1766690873836,1.1897789,841.35,840.71,0.89061414]
[1766690874037,1.1897789,841.34,840.71,0.89061414]
[1766690874337,1.1897789,841.33,840.7,0.89061414]
[1766690874536,1.1897789,841.32,840.7,0.89061414]
[1766690874740,1.1897789,841.31,840.7,0.89061414]
[1766690874940,1.1897789,841.3,840.7,0.89061414]
[1766690875236,1.1897789,841.29,840.7,0.89061414]
[1766690875439,1.1897789,841.28,840.7,0.89061414]
[1766690875640,1.1897789,841.27,840.7,0.89061414]
[1766690875838,1.1897789,841.26,840.7,0.89061414]
[1766690876038,0.20686642,841.38,840.7,0.89061414]
[1766690876238,1.1897789,841.37,840.7,0.89061414]
[1766690876540,1.1897789,841.36,840.7,0.89061414]
[1766690876739,1.1897789,841.35,840.7,0.89061414]
[1766690876939,1.1897789,841.34,840.7,0.89061414]
[1766690877139,1.1897789,841.33,840.7,0.89061414]
[1766690877344,1.1897789,841.32,840.7,0.89061414]
[1766690877541,1.1897789,841.31,840.7,0.89061414]
[1766690877748,1.1897789,841.3,840.7,0.89061414]
[1766690877947,1.1897789,841.29,840.7,0.89061414]
[1766690878244,1.1897789,841.28,840.67,0.89061414]
[1766690878543,1.1897789,841.27,840.67,0.89061414]
[1766690878742,1.1897789,841.26,840.67,0.89061414]
[1766690878946,0.20686642,841.38,840.67,0.89061414]
[1766690879141,1.18977899,841.37,840.67,0.89061414]
[1766690879347,1.18977899,841.36,840.67,0.89061414]
[1766690879647,1.18977899,841.35,840.67,0.89061414]
[1766690879844,1.18977899,841.34,840.67,0.89061414]
[1766690880146,1.18977899,841.33,840.67,0.89061414]
[1766690880447,1.18977899,841.32,840.67,0.89061414]
[1766690880648,1.18977899,841.31,840.67,0.89061414]
[1766690880849,1.18977899,841.3,840.67,0.89061414]
[1766690881047,1.18977899,841.29,840.67,0.89061414]
[1766690881244,1.18977899,841.28,840.67,0.89061414]
[1766690881448,1.18977899,841.27,840.67,0.89061414]
[1766690881646,1.18977899,841.26,840.66,0.89061414]
[1766690881850,1.18977899,841.25,840.64,0.89061414]
[1766690882149,1.18977899,841.24,840.6,0.89061414]
[1766690882349,1.18977899,841.23,840.59,0.89061414]
[1766690882547,1.09383368,841.38,840.59,0.89061414]
[1766690882548,1.18977899,841.22,840.59,0.89061414]
[1766690882747,1.18977899,841.21,840.59,0.89061414]
[1766690882948,1.09383368,841.38,840.59,0.89061414]
[1766690883149,1.18987358,841.37,840.59,0.89061414]
[1766690883349,1.18987358,841.36,840.59,0.89061414]
[1766690883545,1.18987358,841.35,840.59,0.89061414]
[1766690883747,1.18987358,841.34,840.59,0.89061414]
[1766690883947,1.18987358,841.33,840.59,0.89061414]
[1766690884150,1.18987358,841.32,840.59,0.89061414]
[1766690884450,1.18987358,841.31,840.58,0.89061414]
[1766690884650,1.18987358,841.3,840.58,0.89061414]
[1766690884847,1.18987358,841.29,840.58,0.89061414]
[1766690885051,1.18987358,841.28,840.58,0.89061414]
[1766690885251,1.18987358,841.27,840.58,0.89061414]
[1766690885445,1.18987358,841.26,840.58,0.89061414]
[1766690885751,1.18987358,841.25,840.58,0.89061414]
[1766690885952,1.18987358,841.24,840.58,0.89061414]
[1766690886146,1.18987358,841.23,840.58,0.89061414]
[1766690886352,1.18987358,841.22,840.58,0.89061414]
[1766690886652,0.20686642,841.38,840.58,0.89061414]
[1766690886954,0.88696726,841.07,840.25,0.89061414]
[1766690887150,1.18987515,841.06,840.25,0.89061414]
[1766690887452,1.18987515,841.06,840.21,0.89061414]
[1766690887748,1.18987515,841.05,840.21,0.89061414]
[1766690887953,1.18987515,841.04,840.21,0.89061414]
[1766690888152,1.18987515,841.03,840.21,0.89061414]
[1766690888351,1.18987515,841.02,840.18,0.89061414]
[1766690888554,1.18987515,841.01,840.18,0.89061414]